[Event "FIDE World Rapid-ch Open 2018"]
[White "Esipenko, Andrey"]
[Black "Tukhaev, Adam"]
[Site "St. Petersburg"]
[Round "14.49"]
[Annotator "ChessBase"]
[Result "1/2-1/2"]
[Date "2018.12.28"]
[WhiteElo "2593"]
[BlackElo "2527"]
[PlyCount "93"]
[TimeControl "900+10"]

1. d4 {[%emt 0:0:0]} g6 {[%emt 0:0:8]} 2. Nf3 {[%emt 0:0:5]} Bg7 {[%emt 0:0:11]
} 3. g3 {[%emt 0:0:3]} Nf6 {[%emt 0:0:8]} 4. Bg2 {[%emt 0:0:0]} 0-0 {[%emt 0:0:12]} 5. 0-0 {[%emt 0:0:3]} d6 {[%emt 0:0:2]} 6. b3 {[%emt 0:0:2]
} a5 {[%emt 0:0:12]} 7. Bb2 {[%emt 0:0:28]} a4 {[%emt 0:0:7]} 8. c4 {[%emt 0:0:3]} axb3 {[%emt 0:0:20]} 9. axb3 {[%emt 0:0:2]} Rxa1 {[%emt 0:0:2]
} 10. Bxa1 {[%emt 0:0:2]} c6 {[%emt 0:0:2]} 11. Nbd2 {[%emt 0:0:18]
} Qa5 {[%emt 0:0:28]} 12. Qc2 {[%emt 0:0:4]} d5 {[%emt 0:0:0]} 13. Bc3 {[%emt 0:0:29]} Qd8 {[%emt 0:0:34]} 14. Ne5 {[%emt 0:4:1]} Bf5 {[%emt 0:0:17]} 15. Qb2 {[%emt 0:0:2]} Nfd7 {[%emt 0:3:15]} 16. Ra1 {[%emt 0:1:12]
} Nxe5 {[%emt 0:0:11]} 17. dxe5 {[%emt 0:0:2]} Be6 {[%emt 0:0:0]} 18. Bd4 {[%emt 0:1:3]} Nd7 {[%emt 0:0:44]} 19. cxd5 {[%emt 0:0:35]} cxd5 {[%emt 0:0:17]} 20. Nf3 {[%emt 0:0:45]} Qb8 {[%emt 0:0:7]} 21. h3 {[%emt 0:0:46]
} Rc8 {[%emt 0:0:5]} 22. g4 {[%emt 0:1:21]} Qc7 {[%emt 0:0:0]} 23. Ra7 {[%emt 0:0:33]} h6 {[%emt 0:1:26]} 24. e3 {[%emt 0:0:24]} Nb8 {[%emt 0:0:51]
} 25. Ra8 {[%emt 0:0:49]} Nc6 {[%emt 0:0:23]} 26. Rxc8+ {[%emt 0:0:2]
} Qxc8 {[%emt 0:0:0]} 27. Bc3 {[%emt 0:0:50]} h5 {[%emt 0:0:0]} 28. Nh4 {[%emt 0:2:28]} hxg4 {[%emt 0:0:8]} 29. hxg4 {[%emt 0:0:2]} Qd8 {[%emt 0:1:5]} 30. g5 {[%emt 0:0:48]} Qb6 {[%emt 0:0:12]} 31. Nf3 {[%emt 0:0:59]
} Bf8 {[%emt 0:1:28]} 32. Nd2 {[%emt 0:1:9]} Qd8 {[%emt 0:0:0]} 33. b4 {[%emt 0:0:13]} Bf5 {[%emt 0:0:5]} 34. b5 {[%emt 0:0:2]} Nb8 {[%emt 0:0:1]
} 35. Bb4 {[%emt 0:0:44]} e6 {[%emt 0:0:20]} 36. Bxf8 {[%emt 0:0:0]} Kxf8 {[%emt 0:0:2]} 37. Qa3+ {[%emt 0:0:3]} Kg7 {[%emt 0:0:2]} 38. Qa8 {[%emt 0:0:8]} Qxg5 {[%emt 0:0:31]} 39. f4 {[%emt 0:0:10]} Qg3 {[%emt 0:0:14]
} 40. Nf1 {[%emt 0:0:27]} Qg4 {[%emt 0:0:1]} 41. Nh2 {[%emt 0:0:0]} Qg3 {[%emt 0:0:8]} 42. Nf1 {[%emt 0:0:7]} Qg4 {[%emt 0:0:0]} 43. Nh2 {[%emt 0:0:1]} Qg3 {[%emt 0:0:5]} 44. Nf1 {[%emt 0:0:3]} Qg4 {[%emt 0:0:1]
} 45. Nh2 {[%emt 0:0:5]} Qg3 {[%emt 0:0:1]} 46. Nf1 {[%emt 0:0:0]} Qg4 {[%emt 0:0:1]} 47. Nh2 {[%emt 0:0:4]} 1/2-1/2

[Event "FIDE World Rapid-ch Open 2018"]
[White "Yilmaz, Mustafa"]
[Black "Potkin, Vladimir"]
[Site "St. Petersburg"]
[Round "14.50"]
[Annotator "ChessBase"]
[Result "0-1"]
[Date "2018.12.28"]
[WhiteElo "2636"]
[BlackElo "2597"]
[PlyCount "96"]
[TimeControl "900+10"]

1. d4 {[%emt 0:0:0]} Nf6 {[%emt 0:0:0]} 2. c4 {[%emt 0:0:0]} e6 {[%emt 0:0:0]} 3. Nf3 {[%emt 0:0:0]} d5 {[%emt 0:0:2]} 4. Nc3 {[%emt 0:0:0]} c6 {[%emt 0:0:3]} 5. e3 {[%emt 0:0:0]} Nbd7 {[%emt 0:0:1]} 6. Qc2 {[%emt 0:0:0]} Bd6 {[%emt 0:0:2]} 7. Bd3 {[%emt 0:0:2]} 0-0 {[%emt 0:0:3]} 8. 0-0 {[%emt 0:0:2]} e5 {[%emt 0:0:12]} 9. cxd5 {[%emt 0:0:19]} cxd5 {[%emt 0:0:2]
} 10. e4 {[%emt 0:0:23]} exd4 {[%emt 0:0:4]} 11. Nxd5 {[%emt 0:0:8]
} Nxd5 {[%emt 0:0:3]} 12. exd5 {[%emt 0:0:2]} h6 {[%emt 0:0:0]} 13. Nxd4 {[%emt 0:0:8]} Qh4 {[%emt 0:0:34]} 14. Nf3 {[%emt 0:0:42]} Qh5 {[%emt 0:0:2]} 15. Bh7+ {[%emt 0:0:12]} Kh8 {[%emt 0:0:1]} 16. Qf5 {[%emt 0:0:3]
} Qxf5 {[%emt 0:0:3]} 17. Bxf5 {[%emt 0:0:2]} Nf6 {[%emt 0:0:0]} 18. Bxc8 {[%emt 0:0:2]} Rfxc8 {[%emt 0:0:2]} 19. Rd1 {[%emt 0:0:0]} Rd8 {[%emt 0:0:2]} 20. Be3 {[%emt 0:0:23]} Be7 {[%emt 0:0:2]} 21. d6 {[%emt 0:0:2]} Rxd6 {[%emt 0:0:25]} 22. Rxd6 {[%emt 0:0:2]} Bxd6 {[%emt 0:0:0]} 23. Rd1 {[%emt 0:0:2]} Be7 {[%emt 0:0:37]} 24. g3 {[%emt 0:0:2]} Kg8 {[%emt 0:0:14]} 25. Kg2 {[%emt 0:0:12]} Kf8 {[%emt 0:1:22]} 26. Ne5 {[%emt 0:0:24]
} Ke8 {[%emt 0:1:38]} 27. Kf3 {[%emt 0:3:4]} Nh7 {[%emt 0:0:0]} 28. h4 {[%emt 0:2:20]} Nf8 {[%emt 0:0:2]} 29. h5 {[%emt 0:0:49]} f6 {[%emt 0:1:29]
} 30. Nc4 {[%emt 0:0:20]} Rc8 {[%emt 0:0:30]} 31. b3 {[%emt 0:0:0]} b6 {[%emt 0:0:22]} 32. Ke4 {[%emt 0:0:50]} Rc6 {[%emt 0:0:4]} 33. a4 {[%emt 0:0:36]} Ne6 {[%emt 0:0:46]} 34. Kf5 {[%emt 0:2:53]} Nc5 {[%emt 0:0:0]} 35. Bxc5 {[%emt 0:0:22]} Rxc5+ {[%emt 0:0:1]} 36. Kg6 {[%emt 0:0:0]} Rg5+ {[%emt 0:0:3]} 37. Kh7 {[%emt 0:0:1]} Rxh5 {[%emt 0:0:31]} 38. Kxg7 {[%emt 0:0:29]} Rg5+ {[%emt 0:0:2]} 39. Kxh6 {[%emt 0:2:11]} Bf8+ {[%emt 0:0:32]
} 40. Kh7 {[%emt 0:0:1]} Rg7+ {[%emt 0:0:5]} 41. Kh8 {[%emt 0:0:1]
} Rg5 {[%emt 0:0:14]} 42. Kh7 {[%emt 0:0:33]} Rg7+ {[%emt 0:0:0]} 43. Kh8 {[%emt 0:0:1]} Rg5 {[%emt 0:0:2]} 44. Rd3 {[%emt 0:0:37]} Kf7 {[%emt 0:2:26]} 45. g4 {[%emt 0:0:57]} Rxg4 {[%emt 0:0:27]} 46. Rh3 {[%emt 0:0:2]
} Bg7+ {[%emt 0:1:45]} 47. Kh7 {[%emt 0:0:1]} Rd4 {[%emt 0:0:0]} 48. Ne3 {[%emt 0:0:46]} Rd8 {[%emt 0:0:5]} 0-1

[Event "FIDE World Rapid-ch Open 2018"]
[White "Hakobyan, Aram"]
[Black "Vitiugov, Nikita"]
[Site "St. Petersburg"]
[Round "14.51"]
[Annotator "ChessBase"]
[Result "1/2-1/2"]
[Date "2018.12.28"]
[WhiteElo "2545"]
[BlackElo "2719"]
[PlyCount "84"]
[TimeControl "900+10"]

1. d4 {[%emt 0:0:0]} Nf6 {[%emt 0:0:0]} 2. c4 {[%emt 0:0:0]} e6 {[%emt 0:0:0]} 3. Nf3 {[%emt 0:0:0]} Bb4+ {[%emt 0:0:8]} 4. Bd2 {[%emt 0:0:5]} a5 {[%emt 0:0:20]} 5. g3 {[%emt 0:0:2]} b6 {[%emt 0:0:34]} 6. Bg2 {[%emt 0:0:0]} Bb7 {[%emt 0:0:2]} 7. 0-0 {[%emt 0:0:6]} 0-0 {[%emt 0:0:5]} 8. Bf4 {[%emt 0:0:8]} Be7 {[%emt 0:0:15]} 9. Nc3 {[%emt 0:0:21]} Ne4 {[%emt 0:0:0]} 10. Nb5 {[%emt 0:0:1]} Na6 {[%emt 0:1:53]} 11. Rc1 {[%emt 0:0:2]} c6 {[%emt 0:0:42]} 12. Nc3 {[%emt 0:0:2]} Nxc3 {[%emt 0:0:7]} 13. Rxc3 {[%emt 0:0:1]
} c5 {[%emt 0:0:31]} 14. d5 {[%emt 0:1:43]} exd5 {[%emt 0:0:0]} 15. cxd5 {[%emt 0:0:10]} Bf6 {[%emt 0:0:17]} 16. Be5 {[%emt 0:2:25]} d6 {[%emt 0:0:40]} 17. Bxf6 {[%emt 0:0:1]} Qxf6 {[%emt 0:0:2]} 18. e4 {[%emt 0:0:19]
} b5 {[%emt 0:0:16]} 19. a4 {[%emt 0:0:37]} bxa4 {[%emt 0:0:0]} 20. Nd2 {[%emt 0:0:17]} Nb4 {[%emt 0:0:3]} 21. Re1 {[%emt 0:1:11]} Ba6 {[%emt 0:0:12]} 22. e5 {[%emt 0:0:12]} dxe5 {[%emt 0:0:2]} 23. Ne4 {[%emt 0:0:1]
} Qb6 {[%emt 0:1:24]} 24. Nxc5 {[%emt 0:2:59]} Qd6 {[%emt 0:0:0]} 25. Ne4 {[%emt 0:0:58]} Qb6 26. Qh5 {[%emt 0:1:59]} Nxd5 {[%emt 0:1:6]
} 27. Rc5 {[%emt 0:0:32]} Nb4 {[%emt 0:1:5]} 28. Rec1 {[%emt 0:3:48]} h6 {[%emt 0:0:35]
} 29. Rc7 {[%emt 0:1:21]} Rac8 {[%emt 0:1:4]} 30. Rxc8 {[%emt 0:0:8]
} Rxc8 {[%emt 0:0:3]} 31. Rxc8+ {[%emt 0:0:8]} Bxc8 {[%emt 0:0:0]} 32. Qxe5 {[%emt 0:0:1]} Be6 {[%emt 0:0:19]} 33. Nc5 {[%emt 0:0:22]} Qb5 {[%emt 0:1:24]} 34. Bf1 {[%emt 0:0:9]} Bc4 {[%emt 0:2:53]} 35. Bxc4 {[%emt 0:0:5]
} Qxc4 {[%emt 0:0:2]} 36. Qe8+ {[%emt 0:0:8]} Kh7 {[%emt 0:0:0]} 37. Nd7 {[%emt 0:0:14]} g6 {[%emt 0:1:14]} 38. Qe7 {[%emt 0:0:10]} Nc6 {[%emt 0:0:32]} 39. Nf6+ {[%emt 0:0:6]} Kg7 {[%emt 0:0:1]} 40. Ne8+ {[%emt 0:0:2]
} Kg8 {[%emt 0:0:2]} 41. Nf6+ {[%emt 0:0:2]} Kg7 {[%emt 0:0:0]} 42. Ne8+ {[%emt 0:0:1]} Kg8 1/2-1/2

[Event "FIDE World Rapid-ch Open 2018"]
[White "Adly, Ahmed"]
[Black "Popov, Valerij"]
[Site "St. Petersburg"]
[Round "14.52"]
[Annotator "ChessBase"]
[Result "1-0"]
[Date "2018.12.28"]
[WhiteElo "2626"]
[BlackElo "2532"]
[PlyCount "95"]
[TimeControl "900+10"]

1. d4 {[%emt 0:0:0]} d5 {[%emt 0:0:0]} 2. Nf3 {[%emt 0:0:0]} e6 {[%emt 0:0:0]} 3. g3 {[%emt 0:0:0]} Nf6 {[%emt 0:0:59]} 4. Bg2 {[%emt 0:0:0]} Be7 {[%emt 0:0:21]} 5. 0-0 {[%emt 0:0:2]} 0-0 {[%emt 0:0:2]} 6. c4 {[%emt 0:0:0]} c6 {[%emt 0:0:7]} 7. Qc2 {[%emt 0:0:6]} b6 {[%emt 0:0:20]} 8. Rd1 {[%emt 0:0:31]} Nbd7 {[%emt 0:0:49]} 9. Ne5 {[%emt 0:0:21]} Bb7 {[%emt 0:0:0]} 10. Nc3 {[%emt 0:0:5]} Rc8 {[%emt 0:0:37]} 11. e4 {[%emt 0:0:35]} dxc4 {[%emt 0:1:28]} 12. Nxc4 {[%emt 0:0:12]} b5 {[%emt 0:0:10]} 13. Ne3 {[%emt 0:0:5]
} Qb6 {[%emt 0:0:26]} 14. a4 {[%emt 0:0:27]} Rfd8 {[%emt 0:0:0]} 15. a5 {[%emt 0:2:25]} Qa6 {[%emt 0:0:13]} 16. e5 {[%emt 0:0:16]} Nd5 {[%emt 0:0:7]
} 17. Be4 {[%emt 0:0:8]} Nf8 {[%emt 0:0:48]} 18. Nexd5 {[%emt 0:0:30]
} cxd5 {[%emt 0:0:36]} 19. Bd3 {[%emt 0:0:1]} Qc6 {[%emt 0:0:0]} 20. Qe2 {[%emt 0:0:10]} a6 {[%emt 0:1:1]} 21. Qg4 {[%emt 0:0:4]} Rc7 {[%emt 0:1:4]} 22. Ne2 {[%emt 0:0:36]} Rdc8 {[%emt 0:0:39]} 23. Bh6 {[%emt 0:0:6]
} Ng6 {[%emt 0:0:2]} 24. Bd2 {[%emt 0:0:12]} Nf8 {[%emt 0:0:0]} 25. h4 {[%emt 0:0:32]} Qe8 {[%emt 0:0:50]} 26. h5 {[%emt 0:1:49]} Kh8 {[%emt 0:0:4]
} 27. Re1 {[%emt 0:1:32]} Qd8 {[%emt 0:0:11]} 28. Kg2 {[%emt 0:0:0]} b4 {[%emt 0:0:49]} 29. Nf4 {[%emt 0:0:53]} Ra8 {[%emt 0:0:47]} 30. Rh1 {[%emt 0:0:21]} Kg8 {[%emt 0:0:25]} 31. Rh3 {[%emt 0:1:10]} Rc4 {[%emt 0:0:1]
} 32. Be3 {[%emt 0:0:33]} Bc6 {[%emt 0:0:5]} 33. Ng6 {[%emt 0:0:0]} Bc5 {[%emt 0:0:8]} 34. Nh4 {[%emt 0:1:13]} Kh8 {[%emt 0:0:19]} 35. Qf3 {[%emt 0:0:15]} Rxd4 {[%emt 0:0:39]} 36. Bxd4 {[%emt 0:0:46]} Bxd4 {[%emt 0:0:1]
} 37. Qxf7 {[%emt 0:0:1]} Ra7 {[%emt 0:0:14]} 38. Qf4 {[%emt 0:0:17]
} Bxb2 {[%emt 0:0:7]} 39. Rb1 {[%emt 0:0:35]} Bc3 {[%emt 0:0:0]} 40. Ng6+ {[%emt 0:0:3]} Kg8 {[%emt 0:0:1]} 41. Nxf8 {[%emt 0:0:2]} d4+ {[%emt 0:0:14]} 42. f3 {[%emt 0:0:20]} Rf7 {[%emt 0:0:1]} 43. Nxe6 {[%emt 0:0:1]
} Qe7 {[%emt 0:0:52]} 44. Bxh7+ {[%emt 0:0:40]} Kh8 {[%emt 0:0:0]} 45. Bf5 {[%emt 0:0:28]} Bd7 {[%emt 0:0:20]} 46. Nxg7 {[%emt 0:0:19]} Rxg7 {[%emt 0:0:10]} 47. e6 {[%emt 0:0:27]} Bxe6 {[%emt 0:0:54]} 48. Qh6+ {[%emt 0:0:6]
} 1-0

[Event "FIDE World Rapid-ch Open 2018"]
[White "Sychev, Klementy"]
[Black "Vallejo Pons, Francisco"]
[Site "St. Petersburg"]
[Round "14.53"]
[Annotator "ChessBase"]
[Result "0-1"]
[Date "2018.12.28"]
[WhiteElo "2537"]
[BlackElo "2695"]
[PlyCount "48"]
[TimeControl "900+10"]

1. e4 {[%emt 0:0:0]} e5 {[%emt 0:0:0]} 2. Nf3 {[%emt 0:0:0]} Nc6 {[%emt 0:0:0]
} 3. Bb5 {[%emt 0:0:3]} a6 {[%emt 0:0:0]} 4. Ba4 {[%emt 0:0:0]} b5 {[%emt 0:0:0]} 5. Bb3 {[%emt 0:0:2]} Na5 {[%emt 0:0:0]} 6. 0-0 {[%emt 0:0:26]
} d6 {[%emt 0:0:3]} 7. d4 {[%emt 0:0:1]} exd4 {[%emt 0:0:6]
} 8. Qxd4 {[%emt 0:1:46]} Bb7 {[%emt 0:0:5]} 9. Bg5 {[%emt 0:2:10]} Ne7 {[%emt 0:0:17]
} 10. Qd3 {[%emt 0:0:26]} h6 {[%emt 0:0:38]} 11. Bh4 {[%emt 0:0:0]} g5 {[%emt 0:0:31]} 12. Bg3 {[%emt 0:5:27]} Bg7 {[%emt 0:0:6]} 13. c3 {[%emt 0:0:30]} Nxb3 {[%emt 0:0:55]} 14. axb3 {[%emt 0:0:2]} 0-0 {[%emt 0:0:25]
} 15. h4 {[%emt 0:0:22]} f5 {[%emt 0:3:3]} 16. exf5 {[%emt 0:0:0]} Nxf5 {[%emt 0:0:6]} 17. hxg5 {[%emt 0:0:4]} hxg5 {[%emt 0:0:4]} 18. Nbd2 {[%emt 0:0:21]} g4 {[%emt 0:0:7]} 19. Nd4 {[%emt 0:0:20]} Nxd4 {[%emt 0:0:35]
} 20. cxd4 {[%emt 0:0:2]} Qg5 {[%emt 0:0:2]} 21. Rfc1 {[%emt 0:1:36]
} Qd5 {[%emt 0:1:4]} 22. Qf1 {[%emt 0:0:2]} Rf7 {[%emt 0:0:0]} 23. Rc3 {[%emt 0:0:24]} Bxd4 {[%emt 0:1:4]} 24. Rd3 {[%emt 0:0:1]} Rh7 {[%emt 0:1:4]} 0-1

[Event "FIDE World Rapid-ch Open 2018"]
[White "Vastrukhin, Oleg"]
[Black "Roiz, Michael"]
[Site "St. Petersburg"]
[Round "14.54"]
[Annotator "ChessBase"]
[Result "1/2-1/2"]
[Date "2018.12.28"]
[WhiteElo "2413"]
[BlackElo "2605"]
[PlyCount "54"]
[TimeControl "900+10"]

1. Nf3 {[%emt 0:0:0]} Nf6 {[%emt 0:0:4]} 2. g3 {[%emt 0:0:0]} c5 {[%emt 0:0:6]
} 3. Bg2 {[%emt 0:0:0]} Nc6 {[%emt 0:0:2]} 4. 0-0 {[%emt 0:0:0]} e5 {[%emt 0:0:2]} 5. c4 {[%emt 0:0:2]} d5 {[%emt 0:0:3]} 6. cxd5 {[%emt 0:0:52]} Nxd5 {[%emt 0:0:2]} 7. Nc3 {[%emt 0:0:1]} Be6 {[%emt 0:0:0]} 8. Ng5 {[%emt 0:1:9]} Qxg5 {[%emt 0:0:5]} 9. Nxd5 {[%emt 0:0:2]} Qd8 {[%emt 0:0:3]} 10. e4 {[%emt 0:1:59]} Bd6 {[%emt 0:0:36]} 11. d3 {[%emt 0:0:0]} 0-0 {[%emt 0:0:6]} 12. Be3 {[%emt 0:0:4]} Qd7 {[%emt 0:0:50]} 13. Rc1 {[%emt 0:0:33]} b6 {[%emt 0:0:1]} 14. a3 {[%emt 0:0:2]} Ne7 {[%emt 0:0:0]} 15. Nxe7+ {[%emt 0:3:40]} Bxe7 {[%emt 0:0:6]} 16. f4 {[%emt 0:0:7]
} Rad8 {[%emt 0:2:17]} 17. Rc3 {[%emt 0:0:5]} exf4 {[%emt 0:1:10]} 18. gxf4 {[%emt 0:0:21]} f5 {[%emt 0:0:2]} 19. Qf3 {[%emt 0:0:24]} Bf6 {[%emt 0:0:0]} 20. e5 {[%emt 0:0:8]} Be7 {[%emt 0:0:1]} 21. Qc6 {[%emt 0:1:34]} Bd5 {[%emt 0:0:31]} 22. Qxd7 {[%emt 0:0:51]} Rxd7 {[%emt 0:0:1]} 23. Bh3 {[%emt 0:1:23]
} Be6 {[%emt 0:1:6]} 24. Kf2 {[%emt 0:0:2]} Kf7 {[%emt 0:0:0]} 25. Ke2 {[%emt 0:0:13]} Rfd8 {[%emt 0:0:9]} 26. Rb1 {[%emt 0:0:20]} a5 {[%emt 0:0:21]} 27. Bg2 {[%emt 0:0:18]} g6 {[%emt 0:1:49]} 1/2-1/2

[Event "FIDE World Rapid-ch Open 2018"]
[White "Smirin, Ilia"]
[Black "Potapov, Pavel"]
[Site "St. Petersburg"]
[Round "14.55"]
[Annotator "ChessBase"]
[Result "1/2-1/2"]
[Date "2018.12.28"]
[WhiteElo "2609"]
[BlackElo "2516"]
[PlyCount "104"]
[TimeControl "900+10"]

1. e4 {[%emt 0:0:0]} c5 {[%emt 0:0:0]} 2. Nf3 {[%emt 0:0:0]} Nc6 {[%emt 0:0:0]
} 3. Bb5 {[%emt 0:0:0]} g6 {[%emt 0:0:0]} 4. c3 {[%emt 0:0:0]} Bg7 {[%emt 0:0:5]} 5. d4 {[%emt 0:0:0]} cxd4 {[%emt 0:0:54]} 6. cxd4 {[%emt 0:0:0]} a6 {[%emt 0:0:23]} 7. Ba4 {[%emt 0:0:13]} b5 {[%emt 0:0:58]
} 8. Bb3 {[%emt 0:0:7]} Na5 {[%emt 0:0:41]} 9. Bd5 {[%emt 0:1:3]} Rb8 {[%emt 0:0:41]
} 10. e5 {[%emt 0:0:13]} e6 {[%emt 0:0:42]} 11. Be4 {[%emt 0:0:0]} f5 {[%emt 0:0:27]} 12. Bd3 {[%emt 0:1:9]} Ne7 {[%emt 0:0:12]} 13. h4 {[%emt 0:0:31]} h6 {[%emt 0:0:13]} 14. Nc3 {[%emt 0:0:37]} Bb7 {[%emt 0:0:0]} 15. Ne2 {[%emt 0:0:53]} Bxf3 {[%emt 0:1:5]} 16. gxf3 {[%emt 0:0:2]
} Nd5 {[%emt 0:0:2]} 17. h5 {[%emt 0:2:42]} g5 {[%emt 0:0:13]} 18. f4 {[%emt 0:0:1]
} g4 {[%emt 0:0:14]} 19. f3 {[%emt 0:0:27]} gxf3 {[%emt 0:0:0]} 20. Ng1 {[%emt 0:0:2]} f2+ {[%emt 0:2:15]} 21. Kxf2 {[%emt 0:0:3]} Qb6 {[%emt 0:0:1]} 22. Nf3 {[%emt 0:0:33]} Nc6 {[%emt 0:0:4]} 23. Bc2 {[%emt 0:1:36]
} Bf8 {[%emt 0:4:0]} 24. Bb3 {[%emt 0:0:10]} Nc7 {[%emt 0:0:0]} 25. Qg1 {[%emt 0:0:42]} Ne7 {[%emt 0:0:53]} 26. Be3 {[%emt 0:0:7]} Rg8 {[%emt 0:0:5]} 27. Qe1 {[%emt 0:0:57]} Ncd5 {[%emt 0:0:4]} 28. Rg1 {[%emt 0:0:3]
} Rg4 {[%emt 0:0:18]} 29. Qd2 {[%emt 0:1:44]} a5 {[%emt 0:0:0]} 30. Nh2 {[%emt 0:0:16]} Rxg1 {[%emt 0:0:50]} 31. Rxg1 {[%emt 0:0:5]} Nxe3 {[%emt 0:0:3]} 32. Kxe3 {[%emt 0:0:52]} a4 {[%emt 0:0:3]} 33. Bd1 {[%emt 0:0:25]
} Nd5+ {[%emt 0:0:52]} 34. Kf2 {[%emt 0:0:10]} Bb4 {[%emt 0:0:0]} 35. Qd3 {[%emt 0:1:9]} Nxf4 {[%emt 0:0:17]} 36. Qe3 {[%emt 0:0:1]} Nd5 {[%emt 0:1:1]} 37. Rg8+ {[%emt 0:0:5]} Kf7 {[%emt 0:0:51]} 38. Rxb8 {[%emt 0:0:10]
} Qxb8 {[%emt 0:0:2]} 39. Qxh6 {[%emt 0:0:4]} Qg8 {[%emt 0:0:0]} 40. Nf3 {[%emt 0:0:16]} Be7 {[%emt 0:0:6]} 41. Bc2 {[%emt 0:1:8]} Qg4 {[%emt 0:0:13]} 42. Bd3 {[%emt 0:0:36]} Bh4+ {[%emt 0:0:8]} 43. Nxh4 {[%emt 0:0:20]
} Qxd4+ {[%emt 0:0:32]} 44. Kg2 {[%emt 0:0:13]} Qg4+ {[%emt 0:0:0]} 45. Kf1 {[%emt 0:0:3]} Qxh4 {[%emt 0:0:17]} 46. Qh7+ {[%emt 0:0:39]
} Ke8 {[%emt 0:0:13]} 47. Qg8+ {[%emt 0:0:3]} Ke7 {[%emt 0:0:2]} 48. Qg7+ {[%emt 0:0:2]} Kd8 {[%emt 0:0:6]} 49. Qf8+ {[%emt 0:0:5]} Kc7 {[%emt 0:0:0]} 50. Qc5+ {[%emt 0:0:4]} Kd8 {[%emt 0:0:3]} 51. Qf8+ {[%emt 0:0:2]
} Kc7 {[%emt 0:0:1]} 52. Qc5+ {[%emt 0:0:10]} Kd8 {[%emt 0:0:2]} 1/2-1/2

[Event "FIDE World Rapid-ch Open 2018"]
[White "Demidov, Mikhail"]
[Black "Kevlishvili, Robby"]
[Site "St. Petersburg"]
[Round "14.56"]
[Annotator "ChessBase"]
[Result "1-0"]
[Date "2018.12.28"]
[WhiteElo "2520"]
[BlackElo "2451"]
[PlyCount "81"]
[TimeControl "900+10"]

1. Nf3 {[%emt 0:0:0]} d5 {[%emt 0:0:0]} 2. g3 {[%emt 0:0:0]} g6 {[%emt 0:0:0]} 3. Bg2 {[%emt 0:0:0]} Bg7 {[%emt 0:0:0]} 4. 0-0 {[%emt 0:0:0]} e5 {[%emt 0:0:1]} 5. d3 {[%emt 0:0:0]} Ne7 {[%emt 0:0:4]} 6. c4 {[%emt 0:0:0]} 0-0 {[%emt 0:0:11]} 7. cxd5 {[%emt 0:0:31]} Nxd5 {[%emt 0:0:2]} 8. Bg5 {[%emt 0:0:4]} Ne7 {[%emt 0:0:46]} 9. Nc3 {[%emt 0:1:7]} Nbc6 {[%emt 0:0:0]} 10. Qd2 {[%emt 0:0:12]} f6 {[%emt 0:0:46]} 11. Be3 {[%emt 0:0:29]} Nf5 {[%emt 0:0:10]} 12. Bc5 {[%emt 0:0:16]} Re8 {[%emt 0:0:6]} 13. Rac1 {[%emt 0:0:13]
} Ncd4 {[%emt 0:0:25]} 14. Rfd1 {[%emt 0:3:22]} c6 {[%emt 0:0:0]} 15. e3 {[%emt 0:0:41]} Nxf3+ {[%emt 0:1:7]} 16. Bxf3 {[%emt 0:0:2]} Be6 {[%emt 0:0:19]} 17. Qc2 {[%emt 0:0:39]} b6 {[%emt 0:0:12]} 18. Ba3 {[%emt 0:0:9]
} Rc8 {[%emt 0:0:3]} 19. b4 {[%emt 0:1:57]} Qd7 {[%emt 0:0:0]} 20. Bg2 {[%emt 0:0:16]} Red8 {[%emt 0:1:47]} 21. Bb2 {[%emt 0:1:6]} Qf7 {[%emt 0:0:19]} 22. Qb1 {[%emt 0:0:17]} h5 {[%emt 0:0:53]} 23. h3 {[%emt 0:0:13]
} Bh6 {[%emt 0:0:10]} 24. Re1 {[%emt 0:0:24]} Ne7 {[%emt 0:0:0]} 25. a3 {[%emt 0:1:34]} Rd7 {[%emt 0:0:24]} 26. Rcd1 {[%emt 0:0:41]} Rcd8 {[%emt 0:0:21]} 27. d4 {[%emt 0:0:41]} exd4 {[%emt 0:0:55]} 28. exd4 {[%emt 0:0:7]
} Nf5 {[%emt 0:0:13]} 29. b5 {[%emt 0:0:30]} Rxd4 {[%emt 0:0:0]} 30. Rxd4 {[%emt 0:1:8]} Nxd4 {[%emt 0:1:8]} 31. bxc6 {[%emt 0:0:1]} Bd2 {[%emt 0:0:30]} 32. Rxe6 {[%emt 0:2:3]} Nxe6 {[%emt 0:2:30]} 33. Nd5 {[%emt 0:0:1]
} Bh6 {[%emt 0:0:30]} 34. Nxf6+ {[%emt 0:0:38]} Kh8 {[%emt 0:0:0]} 35. Bd5 {[%emt 0:0:23]} Rxd5 {[%emt 0:2:9]} 36. Nxd5+ {[%emt 0:0:0]} Bg7 {[%emt 0:0:2]} 37. Bxg7+ {[%emt 0:0:16]} Kxg7 {[%emt 0:0:2]} 38. Qb2+ {[%emt 0:0:5]} Kh7 {[%emt 0:0:2]} 39. Qe5 {[%emt 0:0:5]} Nc5 {[%emt 0:0:17]
} 40. c7 {[%emt 0:0:16]} Nd3 {[%emt 0:0:3]} 41. Qe7 {[%emt 0:0:0]} 1-0

[Event "FIDE World Rapid-ch Open 2018"]
[White "Kazhgaleyev, Murtas"]
[Black "Tsydypov, Zhamsaran"]
[Site "St. Petersburg"]
[Round "14.57"]
[Annotator "ChessBase"]
[Result "0-1"]
[Date "2018.12.28"]
[WhiteElo "2587"]
[BlackElo "2529"]
[PlyCount "68"]
[TimeControl "900+10"]

1. d4 {[%emt 0:0:3]} Nf6 {[%emt 0:0:0]} 2. c4 {[%emt 0:0:2]} e6 {[%emt 0:0:0]} 3. Nc3 {[%emt 0:0:1]} Bb4 {[%emt 0:0:0]} 4. e3 {[%emt 0:0:1]} 0-0 {[%emt 0:0:10]} 5. Bd3 {[%emt 0:0:2]} d5 {[%emt 0:0:19]} 6. cxd5 {[%emt 0:0:0]} exd5 {[%emt 0:0:2]} 7. Nge2 {[%emt 0:0:2]} b6 {[%emt 0:0:30]} 8. 0-0 {[%emt 0:0:4]} Bb7 {[%emt 0:0:7]} 9. a3 {[%emt 0:0:19]} Bd6 {[%emt 0:0:0]} 10. b4 {[%emt 0:0:11]} c6 {[%emt 0:0:3]} 11. Rb1 {[%emt 0:0:45]} a5 {[%emt 0:0:21]} 12. f3 {[%emt 0:0:48]} axb4 {[%emt 0:0:3]} 13. axb4 {[%emt 0:0:2]
} Na6 {[%emt 0:4:21]} 14. e4 {[%emt 0:0:12]} dxe4 {[%emt 0:0:0]} 15. fxe4 {[%emt 0:0:2]} Be7 {[%emt 0:0:2]} 16. Bg5 {[%emt 0:2:41]} Nxb4 {[%emt 0:2:34]} 17. Bxf6 {[%emt 0:1:35]} gxf6 {[%emt 0:0:3]} 18. Rf3 {[%emt 0:1:7]
} Ra5 {[%emt 0:1:30]} 19. e5 {[%emt 0:2:17]} fxe5 {[%emt 0:0:0]} 20. Bf5 {[%emt 0:0:59]} exd4 {[%emt 0:0:25]} 21. Ne4 {[%emt 0:0:10]} d3 {[%emt 0:0:34]} 22. N2g3 {[%emt 0:0:16]} Qd4+ {[%emt 0:0:59]} 23. Kh1 {[%emt 0:0:2]
} Kh8 {[%emt 0:1:41]} 24. Rf4 {[%emt 0:0:53]} Qg7 {[%emt 0:0:0]} 25. Qh5 {[%emt 0:0:48]} Rg8 {[%emt 0:0:15]} 26. h3 {[%emt 0:0:49]} Ra1 {[%emt 0:1:7]} 27. Rxa1 {[%emt 0:1:30]} Qxa1+ {[%emt 0:0:1]} 28. Kh2 {[%emt 0:0:1]
} Rg7 {[%emt 0:0:4]} 29. Qh6 {[%emt 0:0:11]} Qe5 {[%emt 0:0:0]} 30. Nh5 {[%emt 0:0:48]} Nd5 {[%emt 0:0:21]} 31. Nf2 {[%emt 0:2:30]} Bg5 {[%emt 0:0:28]} 32. Qxg7+ {[%emt 0:0:3]} Qxg7 {[%emt 0:0:2]} 33. Nxg7 {[%emt 0:0:2]
} Bxf4+ {[%emt 0:0:2]} 34. g3 {[%emt 0:0:2]} Be3 {[%emt 0:0:0]} 0-1